[Event "Schack-SM 2023: Junior-SM"]
[Site "Helsingborg Arena, Mellersta Stenbocksgatan 14, Helsingborg, Sweden"]
[Date "2023.07.04"]
[Round "4.5"]
[White "Lindholm, Gustav"]
[Black "Joensson, Oscar"]
[Result "1/2-1/2"]
[TimeControl "90 minutes for 40 moves + 30 minutes for the rest of the game + 30 seconds per move from move one."]
[WhiteElo "2155"]
[BlackElo "2077"]

1. d4 {[%clk 01:30:58]} {[%emt 00:00:01]} Nf6 {[%clk 01:30:55]} {[%emt
00:00:05]} 2. c4 {[%clk 01:31:23]} {[%emt 00:00:05]} g6 {[%clk 01:31:21]}
{[%emt 00:00:04]} 3. g3 {[%clk 01:31:47]} {[%emt 00:00:05]} Bg7 {[%clk
01:31:46]} {[%emt 00:00:05]} 4. Bg2 {[%clk 01:32:12]} {[%emt 00:00:05]} O-O
{[%clk 01:32:09]} {[%emt 00:00:07]} 5. Nc3 {[%clk 01:32:35]} {[%emt 00:00:08]}
d6 {[%clk 01:32:15]} {[%emt 00:00:24]} 6. Nf3 {[%clk 01:32:42]} {[%emt
00:00:22]} c6 {[%clk 01:31:53]} {[%emt 00:00:52]} 7. e4 {[%clk 01:31:02]}
{[%emt 00:02:09]} Bg4 {[%clk 01:26:21]} {[%emt 00:06:02]} 8. Be3 {[%clk
01:27:57]} {[%emt 00:03:34]} e5 {[%clk 01:19:48]} {[%emt 00:07:04]} 9. Qd3
{[%clk 01:24:26]} {[%emt 00:04:01]} Bxf3 {[%clk 01:11:25]} {[%emt 00:08:54]} 10.
Bxf3 {[%clk 01:24:50]} {[%emt 00:00:06]} Nbd7 {[%clk 01:08:53]} {[%emt
00:03:02]} 11. O-O {[%clk 01:23:06]} {[%emt 00:02:13]} exd4 {[%clk 01:06:34]}
{[%emt 00:02:50]} 12. Bxd4 {[%clk 01:23:16]} {[%emt 00:00:19]} Ne5 {[%clk
01:04:59]} {[%emt 00:02:05]} 13. Qe2 {[%clk 01:13:51]} {[%emt 00:09:55]} Nfd7
{[%clk 00:52:51]} {[%emt 00:12:38]} 14. Rad1 {[%clk 00:55:09]} {[%emt
00:19:12]} Qe7 {[%clk 00:37:01]} {[%emt 00:16:19]} 15. Bg2 {[%clk 00:52:20]}
{[%emt 00:03:19]} Nb6 {[%clk 00:34:40]} {[%emt 00:02:51]} 16. b3 {[%clk
00:44:29]} {[%emt 00:08:20]} c5 {[%clk 00:28:54]} {[%emt 00:06:15]} 17. Bxe5
{[%clk 00:44:51]} {[%emt 00:00:09]} Bxe5 {[%clk 00:29:17]} {[%emt 00:00:07]} 18.
Qd3 {[%clk 00:42:04]} {[%emt 00:03:16]} a6 {[%clk 00:25:09]} {[%emt 00:04:39]}
19. Kh1 {[%clk 00:36:07]} {[%emt 00:06:27]} Bxc3 {[%clk 00:16:29]} {[%emt
00:09:10]} 20. Qxc3 {[%clk 00:36:32]} {[%emt 00:00:06]} Nc8 {[%clk 00:16:45]}
{[%emt 00:00:14]} 21. Qd3 {[%clk 00:35:57]} {[%emt 00:01:04]} Rd8 {[%clk
00:14:43]} {[%emt 00:02:32]} 22. Rfe1 {[%clk 00:27:46]} {[%emt 00:08:41]} Na7
{[%clk 00:14:38]} {[%emt 00:00:35]} 23. f4 {[%clk 00:27:16]} {[%emt 00:01:01]}
Nc6 {[%clk 00:13:56]} {[%emt 00:01:12]} 24. Qf1 {[%clk 00:22:50]} {[%emt
00:04:56]} f6 {[%clk 00:12:05]} {[%emt 00:02:22]} 25. Qd3 {[%clk 00:19:57]}
{[%emt 00:03:21]} Kg7 {[%clk 00:09:19]} {[%emt 00:03:17]} 26. Qe3 {[%clk
00:15:36]} {[%emt 00:04:48]} Re8 {[%clk 00:06:47]} {[%emt 00:03:06]} 27. h4
{[%clk 00:12:15]} {[%emt 00:03:51]} h5 {[%clk 00:05:36]} {[%emt 00:01:40]} 28.
Rd5 {[%clk 00:09:34]} {[%emt 00:03:10]} Nb4 {[%clk 00:04:26]} {[%emt 00:01:41]}
29. Rd2 {[%clk 00:09:53]} {[%emt 00:00:10]} Nc6 {[%clk 00:04:24]} {[%emt
00:00:33]} 30. Rf2 {[%clk 00:07:46]} {[%emt 00:02:38]} Rad8 {[%clk 00:02:42]}
{[%emt 00:02:12]} 31. f5 {[%clk 00:06:29]} {[%emt 00:01:47]} Ne5 {[%clk
00:02:40]} {[%emt 00:00:32]} 32. Bh3 {[%clk 00:06:06]} {[%emt 00:00:54]} b5
{[%clk 00:02:42]} {[%emt 00:00:28]} 33. fxg6 {[%clk 00:04:50]} {[%emt
00:01:46]} bxc4 {[%clk 00:03:00]} {[%emt 00:00:12]} 34. bxc4 {[%clk 00:05:04]}
{[%emt 00:00:16]} Nxc4 {[%clk 00:02:35]} {[%emt 00:00:54]} 35. Qe2 {[%clk
00:05:03]} {[%emt 00:00:31]} d5 {[%clk 00:01:43]} {[%emt 00:01:23]} 36. Qxh5
{[%clk 00:05:28]} {[%emt 00:00:05]} Rh8 {[%clk 00:02:09]} {[%emt 00:00:04]} 37.
Qe2 {[%clk 00:04:27]} {[%emt 00:01:30]} Qxe4+ {[%clk 00:01:00]} {[%emt
00:01:39]} 38. Qxe4 {[%clk 00:04:52]} {[%emt 00:00:06]} dxe4 {[%clk 00:01:26]}
{[%emt 00:00:04]} 39. Rxe4 {[%clk 00:05:16]} {[%emt 00:00:05]} Rd1+ {[%clk
00:01:43]} {[%emt 00:00:13]} 40. Kh2 {[%clk 00:05:06]} {[%emt 00:00:40]} Ne5
{[%clk 00:01:41]} {[%emt 00:00:33]} 41. Ra4 {[%clk 00:04:10]} {[%emt 00:01:25]}
Rd6 {[%clk 00:01:20]} {[%emt 00:00:51]} 42. Bf5 {[%clk 00:23:46]} {[%emt
00:10:54]} c4 {[%clk 00:19:11]} {[%emt 00:12:39]} 43. Rb4 {[%clk 00:20:04]}
{[%emt 00:04:13]} c3 {[%clk 00:08:09]} {[%emt 00:11:31]} 44. Rb7+ {[%clk
00:20:25]} {[%emt 00:00:09]} Kh6 {[%clk 00:08:32]} {[%emt 00:00:06]} 45. Rc7
{[%clk 00:07:56]} {[%emt 00:13:00]} Rd2 {[%clk 00:06:59]} {[%emt 00:02:03]} 46.
Kg2 {[%clk 00:07:27]} {[%emt 00:00:59]} Nxg6 {[%clk 00:06:31]} {[%emt
00:00:58]} 47. Bxg6 {[%clk 00:07:44]} {[%emt 00:00:13]} Kxg6 {[%clk 00:06:51]}
{[%emt 00:00:11]} 48. Rxc3 {[%clk 00:08:07]} {[%emt 00:00:07]} Rhd8 {[%clk
00:05:50]} {[%emt 00:01:30]} 49. Ra3 {[%clk 00:08:01]} {[%emt 00:00:37]} Rxf2+
{[%clk 00:05:52]} {[%emt 00:00:27]} 50. Kxf2 {[%clk 00:08:26]} {[%emt
00:00:05]} Rd6 {[%clk 00:06:14]} {[%emt 00:00:09]} 51. Ra5 {[%clk 00:08:43]}
{[%emt 00:00:13]} f5 {[%clk 00:06:22]} {[%emt 00:00:22]} 52. Ke3 {[%clk
00:08:58]} {[%emt 00:00:12]} Kf6 {[%clk 00:06:09]} {[%emt 00:00:45]} 53. Ra4
{[%clk 00:08:39]} {[%emt 00:00:49]} Ke5 {[%clk 00:06:00]} {[%emt 00:00:38]} 54.
Rc4 {[%clk 00:07:13]} {[%emt 00:01:55]} Rb6 {[%clk 00:05:17]} {[%emt 00:01:15]}
55. h5 {[%clk 00:06:15]} {[%emt 00:01:28]} Re6 {[%clk 00:04:34]} {[%emt
00:01:13]} 56. Rh4 {[%clk 00:06:19]} {[%emt 00:00:25]} Kf6+ {[%clk 00:04:46]}
{[%emt 00:00:19]} 57. Kf4 {[%clk 00:04:39]} {[%emt 00:02:07]} Re2 {[%clk
00:03:53]} {[%emt 00:01:26]} 58. a4 {[%clk 00:04:21]} {[%emt 00:00:49]} Ra2
{[%clk 00:03:54]} {[%emt 00:00:28]} 59. Kf3 {[%clk 00:03:48]} {[%emt 00:01:02]}
Ra3+ {[%clk 00:04:18]} {[%emt 00:00:07]} 60. Kf2 {[%clk 00:04:08]} {[%emt
00:00:10]} Ra2+ {[%clk 00:04:41]} {[%emt 00:00:07]} 61. Ke1 {[%clk 00:04:07]}
{[%emt 00:00:31]} Ra1+ {[%clk 00:02:56]} {[%emt 00:02:15]} 62. Kd2 {[%clk
00:03:39]} {[%emt 00:00:58]} Ra2+ {[%clk 00:03:21]} {[%emt 00:00:06]} 63. Kc3
{[%clk 00:02:38]} {[%emt 00:01:31]} Ra3+ {[%clk 00:03:13]} {[%emt 00:00:38]} 64.
Kb4 {[%clk 00:02:59]} {[%emt 00:00:08]} Rxg3 {[%clk 00:03:36]} {[%emt
00:00:08]} 65. Ka5 {[%clk 00:03:18]} {[%emt 00:00:11]} Rg4 {[%clk 00:03:52]}
{[%emt 00:00:13]} 66. Rh1 {[%clk 00:03:37]} {[%emt 00:00:10]} Kg7 {[%clk
00:03:26]} {[%emt 00:00:57]} 67. Rf1 {[%clk 00:03:22]} {[%emt 00:00:45]} Kf6
{[%clk 00:02:36]} {[%emt 00:01:20]} 68. h6 {[%clk 00:03:20]} {[%emt 00:00:32]}
Rh4 {[%clk 00:02:57]} {[%emt 00:00:08]} 69. h7 {[%clk 00:03:39]} {[%emt
00:00:12]} Rxh7 {[%clk 00:03:07]} {[%emt 00:00:20]} 70. Kxa6 {[%clk 00:04:05]}
{[%emt 00:00:04]} Ke5 {[%clk 00:03:30]} {[%emt 00:00:07]} 71. a5 {[%clk
00:04:20]} {[%emt 00:00:16]} Ke4 {[%clk 00:03:22]} {[%emt 00:00:38]} 72. Kb6
{[%clk 00:04:40]} {[%emt 00:00:10]} f4 {[%clk 00:03:41]} {[%emt 00:00:11]} 73.
a6 {[%clk 00:05:06]} {[%emt 00:00:04]} f3 {[%clk 00:04:00]} {[%emt 00:00:10]}
74. a7 {[%clk 00:05:31]} {[%emt 00:00:05]} Rxa7 {[%clk 00:04:10]} {[%emt
00:00:20]} 75. Kxa7 {[%clk 00:05:58]} {[%emt 00:00:03]} Ke3 {[%clk 00:04:35]}
{[%emt 00:00:05]} 76. Kb6 {[%clk 00:06:23]} {[%emt 00:00:06]} Ke2 {[%clk
00:04:59]} {[%emt 00:00:06]} 77. Rxf3 {[%clk 00:06:48]} {[%emt 00:00:04]} Kxf3
{[%clk 00:05:24]} {[%emt 00:00:05]} 1/2-1/2

[Event "Schack-SM 2023: Veteran-SM 65+"]
[Site "Helsingborg Arena, Mellersta Stenbocksgatan 14, Helsingborg, Sweden"]
[Date "2023.07.04"]
[Round "4.4"]
[White "Alquist, Erik"]
[Black "Hedin, Gunnar"]
[Result "1/2-1/2"]
[TimeControl "90 minutes for 40 moves + 30 minutes for the rest of games + 30 seconds per move from move one."]
[WhiteElo "1936"]
[BlackElo "2093"]

1. e4 {[%clk 01:30:53]} {[%emt 00:00:06]} e6 {[%clk 01:30:53]} {[%emt
00:00:07]} 2. d4 {[%clk 01:31:16]} {[%emt 00:00:07]} d5 {[%clk 01:31:17]}
{[%emt 00:00:05]} 3. Nc3 {[%clk 01:31:36]} {[%emt 00:00:11]} Bb4 {[%emt
00:00:08]} 4. e5 {[%emt 00:00:07]} c5 {[%clk 01:31:18]} {[%emt 00:00:14]} 5. a3
{[%clk 01:31:58]} {[%emt 00:00:08]} Bxc3+ {[%clk 01:31:41]} {[%emt 00:00:07]} 6.
bxc3 {[%clk 01:32:17]} {[%emt 00:00:11]} Ne7 {[%clk 01:31:44]} {[%emt
00:00:27]} 7. Qg4 {[%clk 01:31:33]} {[%emt 00:01:14]} Kf8 {[%clk 01:31:10]}
{[%emt 00:01:04]} 8. h4 {[%clk 01:30:13]} {[%emt 00:01:51]} Qa5 {[%clk
01:27:33]} {[%emt 00:04:07]} 9. Bd2 {[%clk 01:29:48]} {[%emt 00:00:54]} Qa4
{[%clk 01:27:56]} {[%emt 00:00:09]} 10. h5 {[%clk 01:29:11]} {[%emt 00:01:05]}
h6 {[%clk 01:27:28]} {[%emt 00:00:58]} 11. Rh3 {[%clk 01:28:13]} {[%emt
00:01:27]} Nbc6 {[%clk 01:27:00]} {[%emt 00:00:59]} 12. Qf4 {[%clk 01:27:48]}
{[%emt 00:00:55]} b6 {[%clk 01:25:40]} {[%emt 00:01:51]} 13. Rf3 {[%clk
01:26:59]} {[%emt 00:01:17]} Nd8 {[%clk 01:26:00]} {[%emt 00:00:11]} 14. dxc5
{[%clk 01:24:06]} {[%emt 00:03:23]} Qxf4 {[%clk 01:26:14]} {[%emt 00:00:16]} 15.
Bxf4 {[%clk 01:24:27]} {[%emt 00:00:09]} bxc5 {[%clk 01:23:51]} {[%emt
00:02:53]} 16. Be3 {[%clk 01:24:25]} {[%emt 00:00:32]} Ndc6 {[%clk 01:21:43]}
{[%emt 00:02:39]} 17. Bxc5 {[%clk 01:21:34]} {[%emt 00:03:21]} Nxe5 {[%clk
01:21:19]} {[%emt 00:00:54]} 18. Rf4 {[%clk 01:17:51]} {[%emt 00:04:13]} Nd7
{[%clk 00:56:29]} {[%emt 00:25:21]} 19. Bd6 {[%clk 01:17:39]} {[%emt 00:00:41]}
f6 {[%clk 00:55:34]} {[%emt 00:01:25]} 20. Nf3 {[%clk 01:11:47]} {[%emt
00:06:21]} Kf7 {[%clk 00:40:11]} {[%emt 00:15:55]} 21. Bb5 {[%clk 01:07:31]}
{[%emt 00:04:44]} Nf5 {[%clk 00:24:38]} {[%emt 00:16:03]} 22. Rxf5 {[%clk
01:05:58]} {[%emt 00:02:03]} exf5 {[%clk 00:24:38]} {[%emt 00:00:30]} 23. Bc6
{[%clk 01:06:00]} {[%emt 00:00:29]} Nb6 {[%clk 00:23:39]} {[%emt 00:01:29]} 24.
Bxa8 {[%clk 00:44:50]} {[%emt 00:21:39]} Re8+ {[%clk 00:16:55]} {[%emt
00:07:15]} 25. Kd1 {[%clk 00:31:31]} {[%emt 00:13:48]} Nxa8 {[%clk 00:16:45]}
{[%emt 00:00:40]} 26. Nd4 {[%clk 00:30:38]} {[%emt 00:01:23]} Nb6 {[%clk
00:15:54]} {[%emt 00:01:22]} 27. Bc5 {[%clk 00:28:41]} {[%emt 00:02:26]} Na4
{[%clk 00:14:01]} {[%emt 00:02:23]} 28. Bb4 {[%clk 00:23:46]} {[%emt 00:05:25]}
Nb2+ {[%clk 00:14:11]} {[%emt 00:00:20]} 29. Kc1 {[%clk 00:23:32]} {[%emt
00:00:44]} Nc4 {[%clk 00:14:30]} {[%emt 00:00:12]} 30. Kb1 {[%clk 00:23:03]}
{[%emt 00:00:58]} a5 {[%clk 00:10:30]} {[%emt 00:04:30]} 31. Bc5 {[%clk
00:22:45]} {[%emt 00:00:48]} Nd2+ {[%clk 00:08:45]} {[%emt 00:02:16]} 32. Kb2
{[%clk 00:19:32]} {[%emt 00:03:42]} Ne4 {[%clk 00:06:40]} {[%emt 00:02:35]} 33.
Bb6 {[%clk 00:18:02]} {[%emt 00:02:00]} Nd6 {[%clk 00:06:45]} {[%emt 00:00:25]}
34. Ka2 {[%clk 00:13:23]} {[%emt 00:05:09]} 1/2-1/2

[Event "Schack-SM 2023: Veteran-SM 50+"]
[Site "Helsingborg Arena, Mellersta Stenbocksgatan 14, Helsingborg, Sweden"]
[Date "2023.07.04"]
[Round "4.4"]
[White "Svensson, Hakan"]
[Black "Nilsson, Patrik 1968"]
[Result "0-1"]
[TimeControl "90 minutes for 40 moves + 30 minutes for the rest of games + 30 seconds per move from move one."]
[WhiteElo "2054"]
[BlackElo "1931"]

1. d4 {[%clk 01:30:56]} {[%emt 00:00:02]} Nf6 {[%clk 01:30:45]} {[%emt
00:00:16]} 2. Bg5 {[%clk 01:31:05]} {[%emt 00:00:21]} Ne4 {[%clk 01:30:40]}
{[%emt 00:00:35]} 3. Bh4 {[%clk 01:31:26]} {[%emt 00:00:09]} g5 {[%clk
01:30:25]} {[%emt 00:00:45]} 4. f3 {[%clk 01:31:38]} {[%emt 00:00:18]} gxh4
{[%clk 01:30:35]} {[%emt 00:00:20]} 5. fxe4 {[%clk 01:32:05]} {[%emt 00:00:03]}
c5 {[%clk 01:30:02]} {[%emt 00:01:03]} 6. e3 {[%clk 01:32:26]} {[%emt
00:00:09]} Bh6 {[%clk 01:29:33]} {[%emt 00:00:57]} 7. Qd3 {[%clk 01:32:46]}
{[%emt 00:00:11]} Qb6 {[%clk 01:26:30]} {[%emt 00:03:32]} 8. Nd2 {[%clk
01:32:18]} {[%emt 00:00:59]} cxd4 {[%clk 01:21:28]} {[%emt 00:05:33]} 9. Qxd4
{[%clk 01:29:08]} {[%emt 00:03:40]} Rg8 {[%clk 01:18:56]} {[%emt 00:03:02]} 10.
Qxb6 {[%clk 01:26:19]} {[%emt 00:03:20]} axb6 {[%clk 01:19:12]} {[%emt
00:00:12]} 11. Nc4 {[%clk 01:25:21]} {[%emt 00:01:29]} Rg6 {[%clk 01:18:26]}
{[%emt 00:01:14]} 12. Nf3 {[%clk 01:24:11]} {[%emt 00:01:41]} b5 {[%clk
01:12:23]} {[%emt 00:06:34]} 13. Nce5 {[%clk 01:16:54]} {[%emt 00:07:46]} Rga6
{[%clk 01:11:19]} {[%emt 00:01:34]} 14. a3 {[%clk 01:16:09]} {[%emt 00:01:16]}
Bg7 {[%clk 01:03:49]} {[%emt 00:07:59]} 15. Bxb5 {[%clk 00:44:03]} {[%emt
00:32:37]} Rb6 {[%clk 00:55:54]} {[%emt 00:08:23]} 16. c4 {[%clk 00:37:16]}
{[%emt 00:07:18]} Re6 {[%clk 00:52:11]} {[%emt 00:04:12]} 17. Nd3 {[%clk
00:37:23]} {[%emt 00:00:24]} Rxe4 {[%clk 00:49:08]} {[%emt 00:03:34]} 18. O-O
{[%clk 00:32:38]} {[%emt 00:05:13]} Rxe3 {[%clk 00:47:33]} {[%emt 00:02:06]} 19.
c5 {[%clk 00:32:51]} {[%emt 00:00:17]} Nc6 {[%clk 00:45:53]} {[%emt 00:02:10]}
20. Rae1 {[%clk 00:25:48]} {[%emt 00:07:34]} Rxe1 {[%clk 00:45:34]} {[%emt
00:00:49]} 21. Rxe1 {[%clk 00:26:14]} {[%emt 00:00:03]} Nd4 {[%clk 00:40:44]}
{[%emt 00:05:20]} 22. Nxd4 {[%clk 00:25:20]} {[%emt 00:01:26]} Bxd4+ {[%clk
00:41:02]} {[%emt 00:00:10]} 23. Kf1 {[%clk 00:25:48]} {[%emt 00:00:03]} b6
{[%clk 00:37:19]} {[%emt 00:04:13]} 24. Re4 {[%clk 00:25:45]} {[%emt 00:00:32]}
bxc5 {[%clk 00:30:47]} {[%emt 00:07:04]} 25. b4 {[%clk 00:18:53]} {[%emt
00:07:21]} Rxa3 {[%clk 00:25:19]} {[%emt 00:05:58]} 26. bxc5 {[%clk 00:18:39]}
{[%emt 00:00:43]} Bf6 {[%clk 00:24:24]} {[%emt 00:01:25]} 27. Rg4 {[%clk
00:13:11]} {[%emt 00:05:59]} Kf8 {[%clk 00:23:46]} {[%emt 00:01:07]} 28. Rb4
{[%clk 00:11:30]} {[%emt 00:02:11]} Ba6 {[%clk 00:21:25]} {[%emt 00:02:53]} 29.
Bxa6 {[%clk 00:09:21]} {[%emt 00:02:39]} Rxa6 {[%clk 00:21:43]} {[%emt
00:00:10]} 30. Rb7 {[%clk 00:09:30]} {[%emt 00:00:22]} d6 {[%clk 00:18:53]}
{[%emt 00:03:20]} 31. Rb6 {[%clk 00:09:31]} {[%emt 00:00:30]} Ra1+ {[%clk
00:18:47]} {[%emt 00:00:35]} 32. Ke2 {[%clk 00:09:50]} {[%emt 00:00:12]} dxc5
{[%clk 00:18:34]} {[%emt 00:00:43]} 33. Nxc5 {[%clk 00:09:53]} {[%emt
00:00:27]} Ra2+ {[%clk 00:18:05]} {[%emt 00:00:58]} 34. Kf3 {[%clk 00:10:02]}
{[%emt 00:00:21]} Kg7 {[%clk 00:18:05]} {[%emt 00:00:30]} 35. Ne4 {[%clk
00:09:03]} {[%emt 00:01:29]} e6 {[%clk 00:16:04]} {[%emt 00:02:31]} 36. Rb7
{[%clk 00:07:59]} {[%emt 00:01:34]} Ra3+ {[%clk 00:14:00]} {[%emt 00:02:32]} 37.
Kf4 {[%clk 00:06:07]} {[%emt 00:02:24]} Kg6 {[%clk 00:12:52]} {[%emt 00:01:36]}
38. Nf2 {[%clk 00:02:25]} {[%emt 00:04:13]} Bg5+ {[%clk 00:11:52]} {[%emt
00:01:31]} 39. Ke4 {[%clk 00:02:45]} {[%emt 00:00:10]} Ra4+ {[%clk 00:10:04]}
{[%emt 00:02:17]} 40. Kf3 {[%clk 00:02:27]} {[%emt 00:00:48]} Rd4 {[%clk
00:08:52]} {[%emt 00:01:40]} 41. h3 {[%clk 00:29:46]} {[%emt 00:03:15]} f5
{[%clk 00:36:22]} {[%emt 00:02:58]} 42. Rb6 {[%clk 00:29:15]} {[%emt 00:01:03]}
Kf6 {[%clk 00:36:01]} {[%emt 00:00:50]} 43. Ra6 {[%clk 00:29:32]} {[%emt
00:00:15]} Rd5 {[%clk 00:35:23]} {[%emt 00:01:04]} 44. Rb6 {[%clk 00:28:44]}
{[%emt 00:01:21]} Re5 {[%clk 00:33:14]} {[%emt 00:02:37]} 45. Nd1 {[%clk
00:29:04]} {[%emt 00:00:11]} Rd5 {[%clk 00:32:20]} {[%emt 00:01:23]} 46. Nb2
{[%clk 00:26:21]} {[%emt 00:03:15]} Rd4 {[%clk 00:31:31]} {[%emt 00:01:16]} 47.
Rc6 {[%clk 00:24:59]} {[%emt 00:01:54]} h6 {[%clk 00:31:07]} {[%emt 00:00:54]}
48. Ra6 {[%clk 00:24:08]} {[%emt 00:01:21]} Ke7 {[%clk 00:30:00]} {[%emt
00:01:35]} 49. Ra7+ {[%clk 00:19:42]} {[%emt 00:04:59]} Rd7 {[%clk 00:30:06]}
{[%emt 00:00:23]} 50. Ra5 {[%clk 00:20:01]} {[%emt 00:00:12]} Bc1 {[%clk
00:28:29]} {[%emt 00:02:06]} 51. Nc4 {[%clk 00:19:32]} {[%emt 00:00:58]} Rd5
{[%clk 00:26:22]} {[%emt 00:02:36]} 52. Ra7+ {[%clk 00:19:15]} {[%emt
00:00:50]} Kf6 {[%clk 00:26:14]} {[%emt 00:00:38]} 53. Ra6 {[%clk 00:19:11]}
{[%emt 00:00:35]} Rc5 {[%clk 00:26:12]} {[%emt 00:00:28]} 54. Nd6 {[%clk
00:18:35]} {[%emt 00:01:07]} Rc3+ {[%clk 00:24:52]} {[%emt 00:01:51]} 55. Kf2
{[%clk 00:17:05]} {[%emt 00:01:58]} Ra3 {[%clk 00:23:02]} {[%emt 00:02:22]} 56.
Rc6 {[%clk 00:17:13]} {[%emt 00:00:22]} Be3+ {[%clk 00:23:09]} {[%emt
00:00:21]} 57. Ke2 {[%clk 00:17:27]} {[%emt 00:00:13]} Bf4 {[%clk 00:22:54]}
{[%emt 00:00:49]} 58. Ne8+ {[%clk 00:16:39]} {[%emt 00:01:19]} Kf7 {[%clk
00:22:04]} {[%emt 00:01:19]} 59. Rc8 {[%clk 00:13:52]} {[%emt 00:03:19]} Re3+
{[%clk 00:18:27]} {[%emt 00:04:06]} 60. Kf2 {[%clk 00:14:09]} {[%emt 00:00:14]}
Rb3 {[%clk 00:18:00]} {[%emt 00:00:54]} 61. Nc7 {[%clk 00:09:17]} {[%emt
00:05:25]} Bg3+ {[%clk 00:17:09]} {[%emt 00:01:20]} 62. Ke2 {[%clk 00:09:40]}
{[%emt 00:00:07]} Rc3 {[%clk 00:16:37]} {[%emt 00:01:01]} 0-1

[Event "Schack-SM 2023: Mastarklassen-elit"]
[Site "Helsingborg Arena, Mellersta Stenbocksgatan 14, Helsingborg, Sweden"]
[Date "2023.07.04"]
[Round "4.3"]
[White "Lindberg, Bengt"]
[Black "Lind, Jan-Olov"]
[Result "1/2-1/2"]
[TimeControl "90 minutes for 40 moves + 30 minutes for the rest of games + 30 seconds per move from move one."]
[WhiteTitle "IM"]
[WhiteElo "2353"]
[BlackElo "2191"]

1. e4 {[%clk 01:30:57]} {[%emt 00:00:04]} c5 {[%clk 01:30:47]} {[%emt
00:00:13]} 2. Nf3 {[%clk 01:31:21]} {[%emt 00:00:05]} g6 {[%clk 01:31:08]}
{[%emt 00:00:09]} 3. c4 {[%clk 01:31:39]} {[%emt 00:00:13]} Bg7 {[%clk
01:31:19]} {[%emt 00:00:19]} 4. d4 {[%clk 01:32:03]} {[%emt 00:00:05]} cxd4
{[%clk 01:31:43]} {[%emt 00:00:07]} 5. Nxd4 {[%clk 01:32:27]} {[%emt 00:00:06]}
Nc6 {[%clk 01:32:04]} {[%emt 00:00:10]} 6. Be3 {[%clk 01:32:34]} {[%emt
00:00:21]} Nf6 {[%clk 01:32:12]} {[%emt 00:00:23]} 7. Nc3 {[%clk 01:32:56]}
{[%emt 00:00:08]} O-O {[%clk 01:32:35]} {[%emt 00:00:07]} 8. Be2 {[%clk
01:33:05]} {[%emt 00:00:20]} d6 {[%clk 01:32:56]} {[%emt 00:00:10]} 9. O-O
{[%clk 01:33:25]} {[%emt 00:00:10]} Bd7 {[%clk 01:33:19]} {[%emt 00:00:07]} 10.
Qd2 {[%clk 01:33:16]} {[%emt 00:00:37]} Nxd4 {[%clk 01:33:20]} {[%emt
00:00:30]} 11. Bxd4 {[%clk 01:33:40]} {[%emt 00:00:06]} Bc6 {[%clk 01:33:40]}
{[%emt 00:00:11]} 12. f3 {[%clk 01:34:04]} {[%emt 00:00:06]} a5 {[%clk
01:34:01]} {[%emt 00:00:08]} 13. b3 {[%clk 01:28:09]} {[%emt 00:06:25]} Nd7
{[%clk 01:34:20]} {[%emt 00:00:12]} 14. Be3 {[%clk 01:28:29]} {[%emt 00:00:10]}
Nc5 {[%clk 01:34:42]} {[%emt 00:00:08]} 15. Rab1 {[%clk 01:26:44]} {[%emt
00:02:13]} e6 {[%clk 01:31:20]} {[%emt 00:03:53]} 16. Nb5 {[%clk 01:06:43]}
{[%emt 00:20:31]} Be5 {[%clk 01:19:55]} {[%emt 00:11:56]} 17. Qe1 {[%clk
01:01:45]} {[%emt 00:05:26]} Qe7 {[%clk 01:06:37]} {[%emt 00:13:48]} 18. Rd1
{[%clk 00:56:04]} {[%emt 00:06:10]} Bxb5 {[%clk 00:54:49]} {[%emt 00:12:19]} 19.
cxb5 {[%clk 00:56:15]} {[%emt 00:00:18]} d5 {[%clk 00:53:11]} {[%emt 00:02:10]}
20. Qf2 {[%clk 00:44:38]} {[%emt 00:12:06]} b6 {[%clk 00:46:48]} {[%emt
00:06:54]} 21. exd5 {[%clk 00:38:41]} {[%emt 00:06:27]} exd5 {[%clk 00:43:56]}
{[%emt 00:03:21]} 22. f4 {[%clk 00:31:04]} {[%emt 00:08:07]} Ne4 {[%clk
00:26:13]} {[%emt 00:18:14]} 23. Qf3 {[%clk 00:31:16]} {[%emt 00:00:17]} Bg7
{[%clk 00:21:32]} {[%emt 00:05:11]} 24. Bxb6 {[%clk 00:10:23]} {[%emt
00:21:23]} Rfe8 {[%clk 00:16:07]} {[%emt 00:05:55]} 25. Bd3 {[%clk 00:08:48]}
{[%emt 00:02:05]} Nc3 {[%clk 00:10:23]} {[%emt 00:06:14]} 26. Rc1 {[%clk
00:06:08]} {[%emt 00:03:10]} Qb4 {[%clk 00:10:08]} {[%emt 00:00:46]} 27. Qf2
{[%clk 00:04:45]} {[%emt 00:01:51]} d4 {[%clk 00:08:02]} {[%emt 00:02:37]} 28.
Bc7 {[%clk 00:03:58]} {[%emt 00:01:17]} Nxb5 {[%clk 00:07:31]} {[%emt
00:01:02]} 29. f5 {[%clk 00:03:12]} {[%emt 00:01:15]} Nc3 {[%clk 00:06:27]}
{[%emt 00:01:34]} 30. Bc4 {[%clk 00:01:33]} {[%emt 00:02:09]} Re7 {[%clk
00:02:28]} {[%emt 00:04:30]} 31. Qf4 {[%clk 00:01:20]} {[%emt 00:00:42]} Qxc4
{[%clk 00:02:38]} {[%emt 00:00:21]} 32. bxc4 {[%clk 00:00:59]} {[%emt
00:00:51]} Ne2+ {[%clk 00:03:02]} {[%emt 00:00:06]} 33. Kh1 {[%clk 00:01:19]}
{[%emt 00:00:09]} Nxf4 {[%clk 00:03:26]} {[%emt 00:00:06]} 34. Bxf4 {[%clk
00:01:44]} {[%emt 00:00:04]} Re4 {[%clk 00:01:02]} {[%emt 00:02:54]} 35. Bd6
{[%clk 00:00:53]} {[%emt 00:01:22]} d3 {[%clk 00:01:06]} {[%emt 00:00:27]} 36.
fxg6 {[%clk 00:00:38]} {[%emt 00:00:44]} hxg6 {[%clk 00:01:27]} {[%emt
00:00:09]} 37. Rcd1 {[%clk 00:00:58]} {[%emt 00:00:10]} Rxc4 {[%clk 00:01:34]}
{[%emt 00:00:23]} 1/2-1/2